Cogmind - Beta 13 @@@ ROGUE MODE // 2024.04.14 @ 00:30:13 Player: SovietPaperclip Result: Self-destructed Performance ------------- Evolutions (0) 0 Regions Visited (4) 800 Robots Destroyed (11) 55 Value Destroyed (192) 192 Prototype IDs (23) 460 Alien Tech Used (0) 0 Bonus (300) 300 TOTAL SCORE: 1807 Bonus ------- Aligned with FarCom 300 Cogmind --------- Core Integrity 31/250 Matter 251/300 Energy 100/100 System Corruption 10% Temperature Cool (21) Movement Core (450) Ox8 Location -9/Mines Parts ------- > --- POWER (1) -------- (None) > --- PROPULSION (2) --- (None) > --- UTILITY (2) ------ Large Storage Unit > --- WEAPON (2) ------- Light Assault Rifle Assault Cannon > --- INVENTORY (15) --- Improved Heat Sink Trap Reconfigurator Army-in-a-Box (30/30) EM Pulse Cannon AWS/Autocannon Makeshift Spear Peak State ------------ > --- POWER ------------ Light Ion Engine > --- PROPULSION ------- Light Treads Light Treads > --- UTILITY ---------- Improved Heat Sink Large Storage Unit > --- WEAPON ----------- Light Assault Rifle Light Assault Rifle > --- INVENTORY -------- Improved Heat Sink Trap Reconfigurator Army-in-a-Box EM Pulse Cannon Assault Cannon AWS/Autocannon Grenade Launcher Makeshift Spear [Rating: 19] Favorites ----------- Power Light Ion Engine Engine Light Ion Engine Propulsion Light Treads Treads Light Treads Utility Large Storage Unit Device Improved Heat Sink Storage Large Storage Unit Weapon Light Assault Rifle Ballistic Gun Light Assault Rifle Ballistic Cannon Assault Cannon Launcher Grenade Launcher Build | -11 -10 -10 -10 -9 ------- Run | Yrd Mat Min Exi Min Slots Evolved . | . . . . . Power . | . . . . . Propulsion . | . . . . . Utility . | . . . . . Weapon . | . . . . . Parts Attached 12 | 6 1 2 . 3 Power 2 | 1 . 1 . . Engine 2 | 1 . 1 . . Core . | . . . . . Reactor . | . . . . . Propulsion 2 | 2 . . . . Treads 2 | 2 . . . . Leg . | . . . . . Wheel . | . . . . . Hover . | . . . . . Flight . | . . . . . Utility 3 | 1 1 1 . . Device 1 | . . 1 . . Storage 2 | 1 1 . . . Processor . | . . . . . Hackware . | . . . . . Protection . | . . . . . Artifact . | . . . . . Weapon 5 | 2 . . . 3 Energy Gun . | . . . . . Energy Cannon . | . . . . . Ballistic Gun 3 | 2 . . . 1 Ballistic Cannon 1 | . . . . 1 Launcher 1 | . . . . 1 Special Weapon . | . . . . . Impact Weapon . | . . . . . Slashing Weapon . | . . . . . Piercing Weapon . | . . . . . Special Melee Weapon . | . . . . . Unidentified Prototypes . | . . . . . Parts Lost 7 | . . 1 . 6 Power 2 | . . 1 . 1 Propulsion 2 | . . . . 2 Utility 1 | . . . . 1 Weapon 2 | . . . . 2 Highest Loss Streak 6 | . . 1 . 6 To Critical Strikes . | . . . . . Average Slot Usage (%) 95 | . 85 97 100 85 Engine 13 | . 14 14 14 10 Treads 27 | . 28 28 28 22 Device 10 | . . 11 14 10 Storage 14 | . 14 14 14 14 Ballistic Gun 27 | . 28 28 28 22 Naked Turns . | . . . . . Heaviest Build 28 | 12 27 27 26 28 Greatest Support 40 | 40 40 40 40 40 Greatest Overweight (x) . | . . . . . Average Overweight (x) . | . . . . . Largest Inventory Capacity 15 | 8 15 15 15 15 Average Capacity 13 | 6 9 15 15 15 Most Carried 15 | 5 3 6 15 15 Average Carried 5 | 2 2 4 9 14 Final Capacity 15 | 8 15 15 15 15 Final Carried 15 | 2 3 6 15 13 Class Distribution -------------------- 100% | Mutant Dominant Class ---------------- Mutant | -10/Materials Mutant | -10/Mines Mutant | -10/Exiles Mutant | -9/Mines Resources | -11 -10 -10 -10 -9 ----------- Run | Yrd Mat Min Exi Min Matter Collected 381 | 209 30 130 . 12 Remotely . | . . . . . Salvage Created 287 | . 43 215 . 29 Parts 20 | . 8 12 . . Haulers Intercepted . | . . . . . Recyclers Shooed . | . . . . . Parts Field Recycled . | . . . . . Retrieved Matter . | . . . . . Parts Self-Destructed . | . . . . . Prevented . | . . . . . Kills | -11 -10 -10 -10 -9 ------- Run | Yrd Mat Min Exi Min Combat Hostiles Destroyed 20 | . 3 7 . 10 Guns 11 | . 3 7 . 1 Cannons 2 | . . . . 2 AOE 7 | . . . . 7 Classes Destroyed 4 | . 1 2 . 1 Tunneler 1 | . . 1 . . Swarmer 7 | . 3 4 . . Grunt 3 | . . 3 . . Assembled 10 | . . . . 10 Best Kill Streak 10 | . 3 2 . 10 Combat Bots Only 10 | . 3 2 . 10 Max Kills in Single Turn 4 | . 1 1 . 4 Gunslinging . | . . . . . Exploded 4 | . . . . 4 Melee . | . . . . . Uniques/NPCs Destroyed . | . . . . . Combat | -11 -10 -10 -10 -9 -------- Run | Yrd Mat Min Exi Min Hostile Shots Fired 94 | . 16 43 . 35 Missed 20 | . 5 5 . 10 Damage Taken 956 | . 93 351 . 512 Core 219 | . 44 102 . 73 Absorbed by Shields . | . . . . . Core Remaining (%) 100 | 100 . . . . Volleys Fired 51 | . 10 33 . 8 Largest 2 | . 2 2 . 2 Hottest 64 | . 40 40 . 64 Shots Fired 98 | . 20 66 . 12 Gun 90 | . 20 66 . 4 Cannon 5 | . . . . 5 Launcher 3 | . . . . 3 Special . | . . . . . Kinetic 95 | . 20 66 . 9 Thermal . | . . . . . Explosive 3 | . . . . 3 Electromagnetic . | . . . . . Robot Hit Streak 4 | . 2 4 . 3 Robot Miss Streak 4 | . 4 4 . 3 Penetration Max . | . . . . . Secondary Targets 4 | . 1 3 . . Max Gunslinging Chain 1 | . 1 1 . . Shots Hit Robots 46 | . 6 35 . 5 Core Hits 41 | . 3 17 . 21 Critical Kills 1 | . . 1 . . Critical Parts Destroyed 1 | . . 1 . . Critical Strikes 2 | . . 2 . . Destroy 2 | . . 2 . . Melee Attacks . | . . . . . Impact . | . . . . . Slashing . | . . . . . Piercing . | . . . . . Sneak Attacks . | . . . . . Combat Hostiles . | . . . . . Follow-up Attacks . | . . . . . Damage Inflicted 917 | . 56 299 . 562 Guns 385 | . 56 299 . 30 Cannons 98 | . . . . 98 Explosions 434 | . . . . 434 Melee . | . . . . . Ramming . | . . . . . Kinetic 483 | . 56 299 . 128 Thermal . | . . . . . Explosive 434 | . . . . 434 Electromagnetic . | . . . . . Impact . | . . . . . Slashing . | . . . . . Piercing . | . . . . . Highest Corruption 10 | . . . . 10 Average Corruption 9 | . . . . 9 Corruption Purged . | . . . . . Corruption Blocked . | . . . . . Effects 2 | . . . . 2 Message Errors 1 | . . . . 1 Data Loss (minor) 1 | . . . . 1 Overload Shots . | . . . . . Overflow Damage . | . . . . . Projectiles . | . . . . . Explosions . | . . . . . Melee . | . . . . . Knockbacks 1 | . . . . 1 Impact . | . . . . . Kinetic 1 | . . . . 1 Secondary . | . . . . . Self-Inflicted Damage 57 | . . . . 57 Shots 2 | . . . . 2 Rammed . | . . . . . Targets Rammed . | . . . . . Kicked . | . . . . . Crushed . | . . . . . Highest Temperature 46 | . . 9 . 46 Average Temperature 18 | . . 7 . 23 Received Heat Transfer 146 | . . 66 . 80 Siege Activations . | . . . . . Robots Corrupted . | . . . . . Combat Hostiles . | . . . . . Parts Fried . | . . . . . Impact Corruptions . | . . . . . Robots Melted . | . . . . . Combat Hostiles . | . . . . . Parts Melted . | . . . . . Heat Transferred . | . . . . . Parts Sabotaged . | . . . . . Parts Stolen . | . . . . . Parts Stripped . | . . . . . Power Chain Reactions . | . . . . . Alert | -11 -10 -10 -10 -9 ------- Run | Yrd Mat Min Exi Min Peak Influence 157 | . 70 157 . 29 Initial 27 | . . 27 . . Average 45 | . 44 52 . 2 Maximum Alert Level . | . . . . . Low Security (%) 100 | 100 100 100 . 100 Level 1 . | . . . . . Level 2 . | . . . . . Level 3 . | . . . . . Level 4 . | . . . . . Level 5 . | . . . . . High Security . | . . . . . Max Security . | . . . . . Squads Dispatched 2 | . 1 1 . . Investigation 1 | . . 1 . . Extermination . | . . . . . Reinforcement 1 | . 1 . . . Assault . | . . . . . Garrison . | . . . . . Intercept . | . . . . . Searches Triggered . | . . . . . Construction Impeded . | . . . . . Haulers Reinforced . | . . . . . Active Scanning Responses . | . . . . . Cargo Convoy Interrupts . | . . . . . Stealth | -11 -10 -10 -10 -9 --------- Run | Yrd Mat Min Exi Min Distress Signals . | . . . . . Communications Jammed . | . . . . . Distress Signals . | . . . . . Times Spotted 25 | . 3 8 . 14 Peak Tracking Total 14 | . 2 3 . 14 Tactical Retreats . | . . . . . Traps | -11 -10 -10 -10 -9 ------- Run | Yrd Mat Min Exi Min Traps Triggered . | . . . . . Indirectly . | . . . . . Trap Hack Attempts . | . . . . . Triggered . | . . . . . Disarmed . | . . . . . Reprogrammed . | . . . . . Reused . | . . . . . Traps Extracted . | . . . . . Installed . | . . . . . Triggered . | . . . . . Machines | -11 -10 -10 -10 -9 ---------- Run | Yrd Mat Min Exi Min Machines Disabled . | . . . . . Max in Single Turn . | . . . . . Machines Repaired . | . . . . . Machines Dismantled . | . . . . . Machines Sabotaged . | . . . . . Overloaded Fab Kills . | . . . . . Hacking | -11 -10 -10 -10 -9 --------- Run | Yrd Mat Min Exi Min Machines Accessed 5 | . 2 1 2 . Terminals 2 | . 2 . . . Fabricators . | . . . . . Repair Stations . | . . . . . Recycling Units . | . . . . . Scanalyzers . | . . . . . Garrison Access . | . . . . . Total Hacks 6 | . 3 1 2 . Successful 3 | . . 1 2 . Failed 3 | . 3 . . . Catastrophic 1 | . 1 . . . Database Lockouts . | . . . . . Manual 1 | . . . 1 . Terminals 3 | . 3 . . . Fabricators . | . . . . . Repair Stations . | . . . . . Recycling Units . | . . . . . Scanalyzers . | . . . . . Garrison Access . | . . . . . Terminal Hacks 3 | . . 1 2 . Record 1 | . . . 1 . Open Door 1 | . . 1 . . Derelict Proto ID Bank 1 | . . . 1 . Fabricator Hacks . | . . . . . Repair Station Hacks . | . . . . . Recycling Unit Hacks . | . . . . . Scanalyzer . | . . . . . Garrison Access Hacks . | . . . . . Unauthorized Hacks . | . . . . . Terminals . | . . . . . Fabricators . | . . . . . Repair Stations . | . . . . . Recycling Units . | . . . . . Scanalyzers . | . . . . . Garrison Access . | . . . . . Data Cores Recovered . | . . . . . Used . | . . . . . Hacking Detections 2 | . 2 . . . Full Trace Events 1 | . 1 . . . Feedback Events . | . . . . . Feedback Blocked . | . . . . . Robot Schematics Acquired . | . . . . . Robots Built . | . . . . . Authchips . | . . . . . Time . | . . . . . Total Robot Build Rating . | . . . . . Part Schematics Acquired . | . . . . . Parts Built . | . . . . . Authchips . | . . . . . Time . | . . . . . Total Part Build Rating . | . . . . . Parts Repaired . | . . . . . Time . | . . . . . Parts Recycled . | . . . . . Recycled Matter . | . . . . . Retrieved Matter . | . . . . . Retrieved Components . | . . . . . Parts Scanalyzed . | . . . . . Part Schematics Acquired . | . . . . . Parts Damaged . | . . . . . Bothacking | -11 -10 -10 -10 -9 ------------ Run | Yrd Mat Min Exi Min Used RIF Installer . | . . . . . Robots Hacked . | . . . . . Non-combat . | . . . . . Combat . | . . . . . Robot Hacks Applied . | . . . . . Relay Couplers Released . | . . . . . Fabnet Peak Effective % . | . . . . . Robots Rewired . | . . . . . Allies Hacked . | . . . . . Hacks Repelled . | . . . . . Allies | -11 -10 -10 -10 -9 -------- Run | Yrd Mat Min Exi Min Total Allies . | . . . . . Largest Group . | . . . . . Highest-Rated Group . | . . . . . Highest-Rated Ally . | . . . . . Total Orders . | . . . . . Ally Attacks . | . . . . . Total Damage . | . . . . . Kills . | . . . . . Allies Corrupted . | . . . . . Allies Melted . | . . . . . Intel | -11 -10 -10 -10 -9 ------- Run | Yrd Mat Min Exi Min Robot Analysis Total . | . . . . . Derelict Logs Recovered 1 | . . 1 . . Drone Launches . | . . . . . Drone Recoveries . | . . . . . Exploration | -11 -10 -10 -10 -9 ------------- Run | Yrd Mat Min Exi Min Turns Passed 1840 | 82 293 980 422 63 Spaces Moved 1055 | 51 164 553 262 25 Core 11 | 11 . . . . Treads 1044 | 40 164 553 262 25 Legs . | . . . . . Wheels . | . . . . . Hover . | . . . . . Flight . | . . . . . Fastest Speed 50 | 50 160 160 160 160 Average Speed 158 | 136 160 160 160 160 Slowest Speed 160 | 160 160 160 160 160 Overloaded Moves . | . . . . . Propulsion Burnouts . | . . . . . Robots Hopped . | . . . . . Cave-ins Triggered . | . . . . . Exploration Rate (%) 35 | 4 29 75 61 10 Regions Visited 4 Branch Regions 3 Pre-discovered Areas 2 | . . 1 1 . Known Exits Taken . | . . . . . Unknown Exits Taken 4 | 1 1 1 1 . Scrap Searched 3 | . . 1 . 2 Spaces Dug . | . . . . . Terrain Destroyed 33 | . . . . 33 Melee . | . . . . . Projectile 1 | . . . . 1 AOE 32 | . . . . 32 Terrain Rammed . | . . . . . Walls Destroyed . | . . . . . Machines Disabled . | . . . . . Actions | -11 -10 -10 -10 -9 --------- Run | Yrd Mat Min Exi Min Total 1140 | 64 179 596 265 36 Wait 6 | . 2 4 . . Move 1051 | 50 163 552 261 25 Hop . | . . . . . Pick Up 18 | 8 2 5 3 . Fast Attach . | . . . . . Attach 11 | 6 1 2 . 2 Detach . | . . . . . Swap 1 | . . . . 1 Drop 2 | . 1 . 1 . Fire 51 | . 10 33 . 8 Melee . | . . . . . Ram . | . . . . . Kick . | . . . . . Crush . | . . . . . Escape Stasis . | . . . . . Rewire . | . . . . . Trap . | . . . . . Miscellaneous . | . . . . . Route ------- -11/Scrapyard -10/Materials -10/Mines (discovered 3 exits: [*Mat] / *Exi / [*Sub]) -10/Exiles -9/Mines History --------- Turn | Location | Event 8 | -11/Scrapyard | Discovered new exit (range 16) 83 | -11/Scrapyard | Entered Materials 225 | -10/Materials | Discovered new exit (range 16) 241 | -10/Materials | Met 8R-AWN 318 | -10/Materials | Build established: Mutant 376 | -10/Materials | Entered Mines 379 | -10/Mines | Followed 8R-AWN into the Mines 380 | -10/Mines | Met a Derelict bent on vengeance 459 | -10/Mines | Learned location of Storage (-9) 536 | -10/Mines | Core integrity fell below 50% 738 | -10/Mines | A weapon hastily lodged in a ceiling crevice suddenly fell to the ground 801 | -10/Mines | Discovered new exit (range 13) 870 | -10/Mines | Discovered new exit (range 5) 1071 | -10/Mines | Learned 2 Materials zone layouts 1082 | -10/Mines | Met a Derelict shopkeep closing up shop 1348 | -10/Mines | Discovered new exit (range 12) 1356 | -10/Mines | Entered Exiles 1395 | -10/Exiles | Welcomed by 8R-AWN 1422 | -10/Exiles | Met EX-HEX 1486 | -10/Exiles | Met EX-DEC 1496 | -10/Exiles | Learned location of Zion (-6) 1523 | -10/Exiles | Met EX-BIN 1547 | -10/Exiles | Aligned with FarCom system 1548 | -10/Exiles | Given EX-Vault access code 1585 | -10/Exiles | Opened EX-Vault 1596 | -10/Exiles | Found Trap Reconfigurator 1601 | -10/Exiles | Found Army-in-a-Box 1609 | -10/Exiles | Found AWS/Autocannon 1643 | -10/Exiles | Warned to stay clear of 0b10 Research branches 1758 | -10/Exiles | Discovered new exit (range 14) 1778 | -10/Exiles | Stole three prototypes: Trap Reconfigurator, Army-in-a-Box, AWS/Autocannon 1778 | -10/Exiles | Entered Mines 1810 | -9/Mines | Assembled infested the area 1827 | -9/Mines | System corruption reached 10% 1834 | -9/Mines | Core integrity fell below 20% 1841 | -9/Mines | Self-destructed Last Messages --------------- 01823_ Imp. Heat Sink destroyed. 01823_ System corrupted by crushing effect (+5). 01823_ System corrupted by crushing effect (+3). 01824_ 2,5GOYD:,AHGIJG0IZ5QHKCTB4PAO 01824_ Lgt. Treads destroyed. 01824_ as-22134 destroyed. 01824_ as-64018 destroyed. 01824_ as-35493 destroyed. 01824_ as-10422 destroyed. 01826_ Grenade Launcher destroyed. 01826_ System corrupted by crushing effect (+2). 01827_ as-26437 destroyed. 01828_ Lgt. Assault Rifle destroyed. 01830_ as-88848 knocked back. 01832_ The unstable cave ceiling collapses. 01833_ as-94953 destroyed. 01834_ The unstable cave ceiling collapses. 01837_ Lgt. Treads destroyed. 01838_ as-42603 destroyed. 01839_ System corrupted: Component data lost. Map ----- +----------------------------------------------------+ | ???????????????????????????????????????????? | | ????????????????????????###????????????????? | | ????????????????????#### ?????????????????? | | ????????????????????# ??????????????????? | | ???????????????????## ???????????????????? | | ???????????????????? #???????????????????? | | ????????????????????# #???????????????????? | | ??????????###????#### #???????????????????? | | ?????????## #??## ##??????????????????? | | ?????????# ### ##?????????????????? | | ?????????# ## ]%########??????????? | | ?????????# ! #??????????? | | ?????????## ##### #??????????? | | ??????????## #???????????????? | | ???????????# ##### ##???????????????? | | ???????????# ##???### #????????????????? | | ???????????## ###??????# #????????????????? | | ????????????## #????????# #????????????????? | | ?????????????# #????????# #????????????????? | | ?????????????# #????????#!#????????????????? | | ?????????????# #????????#%#????????????????? | | ?????????????# #????????#=#????????????????? | | ?????????????# #????????# #????????????????? | | ?????????????? ????????## #??##????????????? | | ?????????????? ???????## # ##???????????? | | ?????????????? ???????# @a #???????????? | | ?????????????? ???????## % ##???????????? | | ?????????????? ???????# % % #???????????? | | ?????????????? ???????# # % ?????????? | | ?????????????? ???????# a ???????? | | ??????????????????????#### ; ?????? | | ??????????????????????????###### #????? | | ????????????????????????????????? #????? | | ?????????????????????????????????? ?????? | | ??????????????????????????????????? ?????? | | ???????????????????????????????????? ??????? | | ???????????????????????????????????????????? | | ???????????????????????????????????????????? | | ???????????????????????????????????????????? | | ???????????????????????????????????????????? | | ???????????????????????????????????????????? | | ???????????????????????????????????????????? | | ???????????????????????????????????????????? | | ???????????????????????????????????????????? | | ???????????????????????????????????????????? | | ???????????????????????????????????????????? | | ???????????????????????????????????????????? | | ???????????????????????????????????????????? | | ???????????????????????????????????????????? | | ???????????????????????????????????????????? | +----------------------------------------------------+ Best States ------------- Heat Dissipation 39 Energy Generation 10 Energy Capacity 250 Matter Stores 300 Matter Capacity 300 Sight Range 16 Terrain Scan Density 10 Evasion (%) 50 Recoil Reduction 2 Item Schematics ----------------- None Robot Schematics ------------------ None Fabricated ------------ Nothing Alien Tech Used ----------------- None Achievements -------------- None Challenges ------------ None Game ------ Seed AssemblyNeutronPod Manual? 0 Play Time 00:09:42 Cumulative 89.2 hours Start 2024.04.14 @ 00:21:12 End 2024.04.14 @ 00:30:13 Sessions 1 Manual Loads 0 Difficulty Rogue Special Mode None Game No. 108 Rogue 108 Adventurer 0 Explorer 0 Win Type - Total 1 Types 1/0/0/0/0/0/0/0/0 Lore% 42 Gallery% 48 Achievement% 45 Wizard Run 0 Options --------- Layout 1 ASCII 0 Keyboard 0 Movement Mouse Keybinds 0 Fullscreen 2 Font 32/Smallcaps Map View 50x40 Zoom Use 0% Tactical HUD 1 Map Filters NONE Filters NONE Steam 1 RUN: 970a0233-44b5-4a53-a8ae-fd35fcc54e03